bitfinex/quotes_SOLUSD_20250908
["timestamp","ask_amount","ask_price","bid_price","bid_amount"]
[1757326435642,46.77402469,212.23,212.22,0.03]
[1757326439765,6.23402469,212.23,212.22,0.03]
[1757326439963,46.77402469,212.23,212.22,0.03]
[1757326440672,47.49402469,212.23,212.22,0.03]
[1757326440972,52.20589388,212.23,212.22,0.03]
[1757326442950,47.47402469,212.23,212.22,0.03]
[1757326443948,40.5,212.23,212.22,0.03]
[1757326444161,6.23402469,212.24,212.22,0.03]
[1757326444361,40.5,212.23,212.22,0.03]
[1757326444775,46.73402469,212.23,212.22,0.03]
[1757326445073,6.23402469,212.24,212.22,0.03]
[1757326445453,11.77360509,212.34,212.22,26.03]
[1757326445648,6.23402469,212.26,212.22,26.03]
[1757326445871,6.23402469,212.27,212.22,26.03]
[1757326446150,40.5,212.26,212.23,2.55632362]
[1757326446473,6.23402469,212.27,212.24,2.55632362]
[1757326446474,40.5,212.25,212.24,2.55632362]
[1757326446777,6.23402469,212.27,212.23,2.55632362]
[1757326447086,11.77202565,212.37,212.26,26.0]
[1757326447251,0.72,212.32,212.26,26.0]
[1757326447455,0.72,212.34,212.27,13.59559401]
[1757326447667,0.72,212.34,212.3,26.0]
[1757326447668,40.48,212.33,212.3,26.0]
[1757326447866,40.48,212.32,212.3,26.0]
[1757326448368,6.23402469,212.34,212.3,26.0]
[1757326448567,40.48,212.32,212.3,26.0]
[1757326449160,46.71402469,212.32,212.3,26.0]
[1757326449878,6.23402469,212.31,212.3,26.0]
[1757326450181,6.95402469,212.31,212.3,26.0]
[1757326450487,6.95402469,212.31,212.26,13.59559401]
[1757326450983,0.06,212.35,212.27,7.26921734]
[1757326451273,0.06,212.35,212.26,13.59559401]
[1757326451274,6.23402469,212.31,212.26,13.59559401]
[1757326451579,6.23402469,212.3,212.26,13.59559401]
[1757326451756,6.95402469,212.31,212.26,18.30670417]
[1757326451963,40.46,212.3,212.25,4.71140917]
[1757326452167,0.72,212.29,212.28,26.0]
[1757326452565,46.69759776,212.3,212.28,26.0]
[1757326452764,47.41759776,212.3,212.28,26.0]
[1757326453783,0.72,212.29,212.28,26.0]
[1757326454081,0.72,212.29,212.24,6.23759776]
[1757326454259,6.95759776,212.28,212.26,26.0]
[1757326454578,46.67759776,212.27,212.22,4.74198989]
[1757326454778,47.39759776,212.27,212.22,4.74198989]
[1757326455174,6.95759776,212.26,212.24,26.0]
[1757326455356,0.06,212.35,212.25,19.83319177]
[1757326455562,0.06,212.35,212.3,10.94791335]
[1757326455773,40.44,212.34,212.31,6.23759776]
[1757326456257,0.06,212.35,212.3,6.23759776]
[1757326456258,40.44,212.33,212.3,6.23759776]
[1757326456486,40.44,212.33,212.29,10.94810097]
[1757326456785,41.16,212.33,212.28,26.0]
[1757326457088,41.16,212.33,212.29,6.23759776]
[1757326457590,40.44,212.33,212.29,10.94805816]
[1757326458161,0.06,212.35,212.34,26.0]
[1757326458369,0.06,212.35,212.34,35.18217222]
[1757326458587,0.06,212.35,212.34,48.77776623]
[1757326459492,0.06,212.38,212.37,39.59559401]
[1757326459682,0.06,212.4,212.38,13.59559401]
[1757326459866,0.06,212.4,212.39,25.32739889]
[1757326460374,0.06,212.4,212.39,22.77776623]
[1757326460573,0.06,212.4,212.39,25.49281613]
[1757326461495,0.06,212.4,212.39,27.65608583]
[1757326462374,1e-08,212.4,212.39,55.96608583]
[1757326462566,1e-08,212.41,212.4,41.90559401]
[1757326462766,1e-08,212.41,212.4,82.97956069]
[1757326462989,1e-08,212.41,212.4,64.61521625]
[1757326463186,1e-08,212.41,212.4,94.17738847]
[1757326463491,1e-08,212.41,212.4,98.88548639]
[1757326463673,1e-08,212.41,212.4,49.32331417]
[1757326463879,1e-08,212.41,212.4,58.50548639]
[1757326464190,1e-08,212.41,212.4,67.68765861]
[1757326464493,1e-08,212.41,212.4,87.68765861]
[1757326464997,1e-08,212.41,212.4,128.06765861]
[1757326465187,1e-08,212.41,212.4,49.32331417]
[1757326465490,1e-08,212.41,212.4,108.04765861]
[1757326466178,0.06,212.44,212.43,67.90559401]
[1757326466179,1e-08,212.44,212.43,67.90559401]
[1757326466388,1e-08,212.44,212.43,79.62738847]
[1757326466685,1e-08,212.44,212.43,70.61521625]
[1757326466863,1e-08,212.44,212.43,79.79738847]
[1757326467578,1e-08,212.44,212.43,84.3348215]
[1757326467763,1e-08,212.44,212.43,81.79519926]
[1757326470870,1e-08,212.44,212.43,27.48519926]
[1757326471096,1e-08,212.44,212.43,44.30302704]
[1757326471388,1e-08,212.44,212.43,53.48519926]
[1757326471581,1e-08,212.44,212.43,48.77776623]
[1757326471887,9.90217223,212.44,212.35,93.98432548]
[1757326472096,9.18217222,212.39,212.35,93.98432548]
[1757326472266,0.72,212.38,212.37,26.0]
[1757326472774,9.90217222,212.38,212.37,26.0]
[1757326473780,9.90217222,212.38,212.35,93.98432548]
[1757326474096,0.72,212.37,212.35,93.98432548]
[1757326474710,9.18217222,212.39,212.35,93.98432548]
[1757326474711,9.18217222,212.39,212.38,26.0]
[1757326475874,1e-08,212.44,212.39,26.0]
[1757326476088,1e-08,212.44,212.41,9.18217222]
[1757326476294,1e-08,212.44,212.4,26.0]
[1757326476295,1e-08,212.44,212.4,35.18217222]
[1757326476489,0.71000001,212.44,212.4,35.18217222]
[1757326478188,0.71000001,212.44,212.41,28.31]
[1757326478374,0.71000001,212.44,212.4,35.18217222]
[1757326478798,0.71000001,212.44,212.4,39.89025308]
[1757326480474,0.71000001,212.44,212.4,30.70808086]
[1757326480678,0.71000001,212.44,212.41,9.18217222]
[1757326481001,0.71000001,212.44,212.41,89.28217222]
[1757326481697,0.71000001,212.44,212.41,84.80787073]
[1757326481904,1e-08,212.44,212.41,93.99004295]
[1757326482206,9.18217222,212.42,212.41,80.1]
[1757326482398,9.89217222,212.42,212.41,80.1]
[1757326483888,14.59982686,212.42,212.38,26.0]
[1757326484095,9.18217222,212.4,212.38,26.0]
[1757326484297,0.71,212.39,212.35,200.08432548]
[1757326484498,0.71,212.39,212.35,174.08432548]
[1757326484892,0.71,212.38,212.35,174.08432548]
[1757326485113,40.24000001,212.44,212.37,9.18217222]
[1757326485408,9.18217222,212.41,212.37,80.1]
[1757326485588,0.71,212.4,212.37,80.1]
[1757326486307,9.18217222,212.38,212.37,80.1]
[1757326486496,50.11217222,212.38,212.35,93.98432548]
[1757326486699,9.18217222,212.36,212.35,93.98432548]
[1757326486997,9.89217222,212.36,212.35,93.98432548]
[1757326487892,50.11217222,212.36,212.35,93.98432548]
[1757326488090,40.93,212.36,212.35,93.98432548]
[1757326488309,14.60115696,212.36,212.35,93.98432548]
[1757326488617,11.76858259,212.43,212.35,93.98432548]
[1757326488618,9.18217222,212.37,212.35,93.98432548]
[1757326488803,40.22,212.36,212.35,93.98432548]
[1757326488989,0.71,212.37,212.35,93.98432548]
[1757326489189,40.22,212.36,212.35,93.98432548]
[1757326489490,9.18217222,212.38,212.35,93.98432548]
[1757326489683,40.22,212.38,212.35,93.98432548]
[1757326490096,9.89217222,212.4,212.35,103.1664977]
[1757326490304,40.93,212.39,212.35,103.1664977]
[1757326490690,0.71,212.39,212.35,103.1664977]
[1757326491007,40.91,212.39,212.35,103.1664977]
[1757326491196,9.89217222,212.38,212.35,93.98432548]
[1757326491397,9.18217222,212.37,212.35,93.98432548]
[1757326491712,9.89217222,212.37,212.35,94.01432548]
[1757326492392,9.89217222,212.36,212.35,94.01432548]
[1757326494195,54.80115696,212.36,212.35,94.01432548]
[1757326495717,14.60115696,212.36,212.35,94.01432548]
[1757326495919,54.78115696,212.36,212.35,94.01432548]
[1757326496297,14.60115696,212.36,212.35,94.01432548]
[1757326496703,54.78115696,212.36,212.35,94.01432548]
[1757326497106,9.89217222,212.36,212.35,94.01432548]
[1757326497290,50.07217222,212.36,212.35,94.01432548]
[1757326497690,54.78115696,212.36,212.35,94.01432548]
[1757326498102,40.18,212.36,212.35,94.01432548]
[1757326498317,40.16,212.36,212.35,94.01432548]
[1757326499607,9.18217222,212.37,212.35,94.01432548]
[1757326499916,40.16,212.36,212.35,94.01432548]
[1757326500092,9.89217222,212.37,212.35,94.01432548]
[1757326500298,40.87,212.36,212.35,94.01432548]
[1757326500717,9.18217222,212.37,212.35,94.01432548]
[1757326500917,26.06,212.47,212.35,94.01432548]
[1757326500918,40.16,212.39,212.35,94.01432548]
[1757326501093,40.16,212.38,212.35,103.1964977]
[1757326501420,9.89217222,212.37,212.35,94.01432548]
[1757326501609,0.71,212.36,212.35,94.01432548]
[1757326501805,9.18217222,212.37,212.35,94.01432548]
[1757326502000,9.89217222,212.37,212.35,94.01432548]
[1757326503021,40.87,212.36,212.35,94.01432548]
[1757326503209,9.89217222,212.36,212.35,94.01432548]
[1757326503518,50.03217222,212.36,212.35,94.01432548]
[1757326504407,0.71,212.39,212.35,94.01432548]
[1757326504612,4.70743303,212.43,212.35,94.01432548]
[1757326504919,0.71,212.41,212.36,9.18217222]
[1757326505115,40.14,212.4,212.36,13.89114458]
[1757326505330,13.88998113,212.42,212.36,13.89114458]
[1757326505508,0.71,212.43,212.38,9.18217222]
[1757326505716,40.12,212.42,212.38,9.18217222]
[1757326505913,9.18217223,212.44,212.39,9.18217222]
[1757326506219,9.18217223,212.44,212.4,9.18217222]
[1757326506220,1e-08,212.44,212.4,9.18217222]
[1757326506398,40.12,212.43,212.39,9.18217222]
[1757326506599,40.12,212.43,212.38,35.18217222]
[1757326506828,40.12,212.43,212.38,26.0]
[1757326506829,9.87217222,212.42,212.38,26.0]
[1757326506994,49.30217222,212.43,212.38,35.18217222]
[1757326507198,9.18217222,212.39,212.35,94.01432548]
[1757326507424,49.99217222,212.38,212.35,94.01432548]
[1757326507623,40.12,212.37,212.35,94.01432548]
[1757326508194,40.12,212.37,212.36,37.49217222]
[1757326508393,40.12,212.37,212.36,9.18217222]
[1757326508800,40.12,212.37,212.35,94.01432548]
[1757326510023,9.18217222,212.39,212.35,94.01432548]
[1757326510204,40.79,212.38,212.35,94.01432548]
[1757326510822,1e-08,212.44,212.39,26.0]
[1757326511030,1e-08,212.44,212.42,9.18217222]
[1757326511228,1e-08,212.44,212.41,35.18217222]
[1757326511521,9.87217223,212.44,212.41,26.0]
[1757326511912,40.08,212.43,212.41,26.0]
[1757326512239,9.87217222,212.42,212.36,13.59559401]
[1757326512434,9.18217222,212.4,212.37,2.56126408]
[1757326512733,40.08,212.39,212.36,13.59559401]
[1757326512900,9.18217222,212.38,212.35,94.01432548]
[1757326513513,1e-08,212.44,212.35,98.72347549]
[1757326513514,0.69,212.42,212.35,98.72347549]
[1757326513835,9.18217222,212.39,212.35,94.01432548]
[1757326514327,4.70743303,212.43,212.35,94.01432548]
[1757326514620,40.08,212.42,212.37,9.18217222]
[1757326515007,40.06,212.41,212.37,9.18217222]
[1757326515714,40.06,212.41,212.37,13.89091641]
[1757326515917,40.06,212.4,212.37,4.70874419]
[1757326516447,40.06,212.4,212.38,2.56636241]
[1757326516620,9.18217222,212.43,212.38,2.56636241]
[1757326516934,40.06,212.42,212.38,2.56636241]
[1757326517253,49.93217222,212.42,212.38,2.56636241]
[1757326517423,49.24217222,212.42,212.38,2.56636241]
[1757326517614,9.18217222,212.4,212.38,2.56636241]
[1757326517814,0.69,212.39,212.36,13.59559401]
[1757326518024,40.06,212.38,212.37,2.56668972]
[1757326518636,40.04,212.38,212.37,2.56668972]
[1757326519018,9.87217222,212.41,212.37,2.56668972]
[1757326519322,40.04,212.4,212.37,2.56668972]
[1757326519934,0.69000001,212.44,212.39,26.0]
[1757326520139,1e-08,212.44,212.41,35.18217222]
[1757326520310,1e-08,212.44,212.41,26.0]
[1757326520636,6.91754116,212.44,212.41,26.0]
[1757326521008,6.91754116,212.44,212.4,13.59559401]
[1757326521525,0.69,212.43,212.38,60.53754115]
[1757326521722,46.95754115,212.42,212.39,2.56625864]
[1757326522030,0.69,212.41,212.39,2.56625864]
[1757326522209,0.69,212.4,212.39,2.56625864]
[1757326522412,0.69,212.4,212.38,26.0]
[1757326522613,0.69,212.4,212.35,94.01432548]
[1757326522812,6.22754115,212.38,212.36,2.56768048]
[1757326523014,40.02,212.37,212.35,94.01432548]
[1757326523223,0.69,212.38,212.36,2.56845434]
[1757326523432,6.22754115,212.39,212.36,2.56845434]
[1757326523618,0.69,212.4,212.36,2.56845434]
[1757326523927,40.02,212.39,212.36,2.56845434]
[1757326524424,6.22754115,212.43,212.39,26.0]
[1757326524735,40.02,212.42,212.39,26.0]
[1757326524923,0.69,212.42,212.39,26.0]
[1757326525120,6.22754115,212.43,212.39,26.0]
[1757326525318,40.0,212.42,212.4,2.56735005]
[1757326526637,1e-08,212.44,212.43,28.31]
[1757326526820,1e-08,212.44,212.43,2.56735005]
[1757326527420,1e-08,212.44,212.42,8.7948912]
[1757326527617,1e-08,212.44,212.4,30.70795958]
[1757326527618,1e-08,212.44,212.43,8.7948912]
[1757326528436,1e-08,212.44,212.43,13.50232423]
[1757326528838,1e-08,212.44,212.43,21.04037709]
[1757326529024,1e-08,212.44,212.43,2.56735005]
[1757326530743,1e-08,212.44,212.43,55.57791824]
[1757326531630,1e-08,212.44,212.43,59.38773927]
[1757326531941,1e-08,212.44,212.43,55.57791824]
[1757326532848,1e-08,212.44,212.43,59.38962775]
[1757326533021,1e-08,212.44,212.43,55.57791824]
[1757326535847,1e-08,212.44,212.43,55.40791824]
[1757326536150,1e-08,212.44,212.43,95.34791824]
[1757326536350,1e-08,212.44,212.43,95.51791824]
[1757326537040,1e-08,212.44,212.43,103.04728126]
[1757326539638,1e-08,212.44,212.43,103.04448537]
[1757326540932,1e-08,212.44,212.43,102.87448537]
[1757326542428,1e-08,212.44,212.43,55.40512235]
[1757326542649,0.70000001,212.44,212.43,30.87455416]
[1757326542850,0.70000001,212.44,212.41,4.70767441]
[1757326543032,0.7,212.43,212.41,10.93521556]
[1757326543234,0.7,212.42,212.41,4.70767441]
[1757326543430,0.7,212.42,212.41,39.5028117]
[1757326543735,0.7,212.42,212.41,53.09840571]
[1757326544044,1e-08,212.44,212.43,26.0]
[1757326544233,1e-08,212.44,212.43,32.22754115]
[1757326544432,1e-08,212.44,212.43,26.0]
[1757326544632,1e-08,212.44,212.43,32.22754115]
[1757326544848,0.70000001,212.44,212.43,32.22754115]
[1757326545454,0.70000001,212.44,212.43,30.70743303]
[1757326546249,1e-08,212.44,212.43,50.53056819]
[1757326546833,1e-08,212.44,212.43,53.09857138]
[1757326547341,1e-08,212.44,212.43,46.87103023]
[1757326547542,1e-08,212.44,212.43,4.70743303]
[1757326547543,0.70000001,212.44,212.43,4.70743303]
[1757326548048,0.70000001,212.44,212.43,10.93497418]
[1757326548448,0.70000001,212.44,212.43,4.70743303]
[1757326548651,0.70000001,212.44,212.43,7.27641985]
[1757326549839,0.70000001,212.44,212.43,7.30641985]
[1757326550057,0.70000001,212.44,212.43,4.73743303]
[1757326550270,0.70000001,212.44,212.43,7.30661862]
[1757326550460,0.70000001,212.44,212.43,7.30714658]
[1757326550757,0.70000001,212.44,212.43,28.59971355]
[1757326550940,0.70000001,212.44,212.43,26.03]
[1757326551669,0.70000001,212.44,212.43,0.03]
[1757326551840,0.70000001,212.44,212.43,4.73743303]
[1757326552041,0.70000001,212.44,212.43,0.03]
[1757326553771,0.70000001,212.44,212.43,26.03]
[1757326554369,0.70000001,212.44,212.43,0.03]
[1757326554546,6.92754116,212.44,212.43,0.03]
[1757326555474,0.70000001,212.44,212.43,0.03]
[1757326557980,6.92754116,212.44,212.43,0.03]
[1757326558174,0.7,212.63,212.47,28.31]
[1757326558351,0.8,212.66,212.63,26.0]
[1757326558548,0.1,212.66,212.65,19.82313516]
[1757326558749,0.1,212.66,212.65,27.09833093]
[1757326559077,0.7,212.75,212.65,79.14576788]
[1757326559249,5.66109825,212.88,212.77,26.0]
[1757326559566,6.22754115,212.91,212.85,6.22754115]
[1757326559772,0.7,212.87,212.86,3.3885274]
[1757326560269,0.7,212.87,212.81,26.0]
[1757326560466,0.7,212.86,212.82,2.62333757]
[1757326560655,39.8,212.95,212.83,2.62333757]
[1757326560858,39.8,212.95,212.93,6.22754115]
[1757326560859,0.7,212.94,212.93,6.22754115]
[1757326561053,0.7,212.94,212.85,26.0]
[1757326561370,0.13,212.96,212.84,4.69836496]
[1757326561371,0.7,212.93,212.87,26.0]
[1757326561567,0.7,212.93,212.88,2.61805487]
[1757326561762,0.7,212.92,212.88,2.61805487]
[1757326562071,0.7,212.91,212.88,2.61805487]
[1757326562254,40.48,212.9,212.83,26.0]
[1757326562566,6.22754115,212.94,212.89,6.22754115]
[1757326562769,0.13,212.96,212.81,6.22754115]
[1757326562770,46.00754115,212.93,212.87,6.22754115]
[1757326563065,0.7,212.92,212.88,6.22754115]
[1757326563277,0.7,212.91,212.88,6.22754115]
[1757326563470,0.7,212.9,212.89,6.22754115]
[1757326563768,0.7,212.9,212.86,6.22754115]
[1757326563970,0.7,212.89,212.86,6.22754115]
[1757326564274,46.68754115,212.88,212.75,13.59559401]
[1757326564451,0.7,212.87,212.82,6.22754115]
[1757326564648,0.13,212.96,212.86,6.22754115]
[1757326564952,0.7,212.95,212.88,13.59559401]
[1757326565749,40.44,212.95,212.88,13.59559401]
[1757326565961,40.44,212.95,212.94,6.22754115]
[1757326566166,40.46,212.95,212.93,6.22754115]
[1757326566361,39.74,212.95,212.94,6.22754115]
[1757326566560,39.74,212.95,212.91,6.22754115]
[1757326566879,0.72,212.94,212.91,6.22754115]
[1757326567077,0.72,212.93,212.89,26.0]
[1757326567254,40.44,212.93,212.91,6.22754115]
[1757326567867,39.72,212.93,212.92,6.22754115]
[1757326568285,0.13,212.96,212.92,6.22754115]
[1757326568453,40.44,212.95,212.93,6.22754115]
[1757326568782,0.72,212.94,212.93,6.22754115]
[1757326568962,0.72,212.94,212.92,6.22754115]
[1757326569166,0.72,212.94,212.88,26.0]
[1757326569479,6.94754115,212.93,212.82,13.59559401]
[1757326569648,6.94754115,212.92,212.86,6.22754115]
[1757326569855,0.72,212.91,212.86,6.22754115]
[1757326570152,39.7,212.91,212.89,6.22754115]
[1757326570477,39.7,212.92,212.9,6.22754115]
[1757326570666,39.7,212.92,212.85,26.0]
[1757326570667,39.7,212.92,212.91,6.22754115]
[1757326570863,0.06,212.95,212.91,6.22754115]
[1757326571054,40.42,212.94,212.86,39.59559401]
[1757326571255,0.72,212.93,212.89,6.22754115]
[1757326571461,0.72,212.92,212.89,6.22754115]
[1757326571672,39.7,212.91,212.89,6.22754115]
[1757326571859,0.72,212.93,212.89,6.22754115]
[1757326572062,39.7,212.93,212.87,13.59559401]
[1757326572380,40.42,212.92,212.91,6.22754115]
[1757326572757,40.42,212.92,212.9,6.22754115]
[1757326572972,39.68,212.92,212.9,26.0]
[1757326573182,39.68,212.92,212.91,6.22754115]
[1757326573366,0.78,212.95,212.91,6.22754115]
[1757326573566,39.68,212.94,212.88,26.0]
[1757326573760,39.68,212.94,212.93,6.22754115]
[1757326574073,0.72,212.94,212.91,6.22754115]
[1757326574265,0.06,212.95,212.89,13.59559401]
[1757326574574,39.74,212.95,212.89,13.59559401]
[1757326574769,40.46,212.95,212.88,26.0]
[1757326574951,40.46,212.95,212.89,13.59559401]
[1757326574952,39.68,212.94,212.89,13.59559401]
[1757326575358,0.06,212.95,212.93,6.22754115]
[1757326575680,0.06,212.95,212.94,6.22754115]
[1757326575865,39.74,212.95,212.94,6.22754115]
[1757326576260,39.72,212.95,212.94,6.22754115]
[1757326577077,0.06,212.95,212.94,6.22754115]
[1757326577977,0.78,212.95,212.92,26.0]
[1757326578280,40.44,212.95,212.94,6.22754115]
[1757326578577,0.06,212.95,212.94,6.22754115]
[1757326578788,39.72,212.95,212.94,6.22754115]
[1757326578962,0.06,212.95,212.92,26.0]
[1757326579565,0.06,212.95,212.94,6.22754115]
[1757326580563,0.06,212.95,212.93,13.59559401]
[1757326580769,0.06,212.95,212.94,6.22754115]
[1757326581676,0.06,212.95,212.94,19.93313516]
[1757326581963,0.06,212.95,212.94,19.82313516]
[1757326582161,40.42,212.95,212.77,14.15]
[1757326582385,40.36,212.94,212.87,1.8799201]
[1757326582684,54.47133846,212.94,212.75,0.67]
[1757326582893,0.72,212.93,212.75,0.67]
[1757326583185,16.43809881,212.92,212.79,26.0]
[1757326583367,0.72,212.91,212.79,26.0]
[1757326583687,9.14135328,212.87,212.81,9.14135328]
[1757326583866,9.86135328,212.87,212.81,9.14135328]
[1757326584066,39.62,212.86,212.84,9.14135328]
[1757326584479,0.72,212.87,212.85,9.14135328]
[1757326584803,0.72,212.91,212.86,9.14135328]
[1757326584986,0.06,212.95,212.9,9.14135328]
[1757326585162,0.06,212.95,212.92,9.14135328]
[1757326586674,9.20135328,212.95,212.9,26.0]
[1757326586870,0.72,212.94,212.87,9.14135328]
[1757326587075,4.69637909,212.93,212.88,9.14135328]
[1757326587280,5.41637909,212.93,212.88,9.14135328]
[1757326587600,39.62,212.93,212.9,9.14135328]
[1757326588389,9.20135328,212.95,212.9,9.14135328]
[1757326588693,39.62,212.94,212.9,9.81135328]
[1757326588886,39.62,212.94,212.87,26.67]
[1757326589090,39.62,212.94,212.87,31.36761497]
[1757326589266,39.62,212.94,212.9,9.14135328]
[1757326589592,39.62,212.94,212.91,9.14135328]
[1757326589885,39.62,212.94,212.92,9.14135328]
[1757326589886,39.6,212.94,212.92,9.14135328]
[1757326590279,39.6,212.94,212.91,26.67]
[1757326590478,39.6,212.94,212.91,35.14135328]
[1757326591292,39.6,212.94,212.92,9.14135328]
[1757326591667,39.6,212.94,212.93,9.14135328]
[1757326592075,0.06,212.95,212.93,9.14135328]
[1757326592303,0.06,212.95,212.94,9.14135328]
[1757326593077,0.06,212.95,212.91,26.0]
[1757326593388,0.06,212.95,212.93,9.14135328]
[1757326593796,0.78,212.95,212.92,9.14135328]
[1757326593993,9.86135328,212.94,212.87,0.67]
[1757326594195,9.86135328,212.94,212.88,9.14135328]
[1757326594392,9.14135328,212.93,212.88,9.14135328]
[1757326594595,9.14135328,212.93,212.87,9.81135328]
[1757326594898,9.14135328,212.94,212.89,9.14135328]
[1757326595093,9.86135328,212.94,212.89,9.14135328]
[1757326595300,4.69637909,212.93,212.89,9.14135328]
[1757326595693,9.86135328,212.94,212.89,9.14135328]
[1757326595990,14.55752577,212.94,212.89,9.14135328]
[1757326596179,5.41617249,212.94,212.89,9.14135328]
[1757326596380,14.55752577,212.94,212.89,9.14135328]
[1757326596583,14.55752577,212.94,212.88,9.14135328]
[1757326596789,14.55752577,212.94,212.89,9.14135328]
[1757326597694,5.41617249,212.94,212.89,9.14135328]
[1757326597880,9.86135328,212.94,212.89,9.14135328]
[1757326598087,5.41623479,212.94,212.89,9.14135328]
[1757326598300,39.58,212.93,212.89,9.14135328]
[1757326598797,39.58,212.93,212.87,0.67]
[1757326598973,39.58,212.93,212.89,9.14135328]
[1757326599397,39.58,212.93,212.87,0.67]
[1757326599398,53.41790147,212.93,212.88,9.14135328]
[1757326599584,49.38135328,212.93,212.88,9.14135328]
[1757326599779,9.14135328,212.89,212.81,0.7]
[1757326599986,9.14135328,212.89,212.83,9.14135328]
[1757326600186,9.80135328,212.88,212.82,9.14135328]
[1757326600411,9.14135328,212.87,212.83,2.5528833]
[1757326600586,9.14135328,212.9,212.85,9.14135328]
[1757326600790,39.56,212.89,212.85,9.14135328]
[1757326601189,48.70135328,212.89,212.84,9.14135328]
[1757326601385,44.25748214,212.88,212.85,2.5625379]
[1757326601699,54.05883542,212.88,212.86,2.5625379]
[1757326601996,9.80135328,212.9,212.87,2.5625379]
[1757326602197,40.22,212.89,212.88,2.5625379]
[1757326602399,16.43655489,212.94,212.88,2.5625379]
[1757326602583,9.14135328,212.9,212.89,2.5625379]
[1757326602781,9.80135328,212.9,212.89,2.5625379]
[1757326602987,0.66,212.9,212.84,9.14135328]
[1757326603188,39.56,212.89,212.84,9.14135328]
[1757326603396,44.25728904,212.89,212.84,9.84135328]
[1757326603702,39.56,212.88,212.84,9.84135328]
[1757326603881,13.83864232,212.89,212.84,9.84135328]
[1757326604078,4.69728904,212.89,212.84,9.84135328]
[1757326604282,39.56,212.88,212.84,0.7]
[1757326604485,39.56,212.88,212.85,9.14135328]
[1757326605005,0.06,212.95,212.89,26.0]
[1757326605182,0.06,212.95,212.91,9.14135328]
[1757326605386,13.83773237,212.93,212.87,9.14135328]
[1757326605596,9.14135328,212.92,212.86,9.14135328]
[1757326605780,39.56,212.91,212.86,9.14135328]
[1757326605983,39.56,212.91,212.86,9.84135328]
[1757326606183,39.56,212.91,212.87,9.84135328]
[1757326606606,9.14135328,212.94,212.89,9.14135328]
[1757326606901,9.14135328,212.94,212.84,26.0]
[1757326606902,49.36135328,212.93,212.87,9.14135328]
[1757326607205,9.14135328,212.91,212.85,9.14135328]
[1757326607590,4.69704086,212.9,212.85,9.14135328]
[1757326607894,39.54,212.89,212.86,9.14135328]
[1757326608088,4.69704086,212.9,212.82,18.29421523]
[1757326608089,0.66,212.93,212.88,9.14135328]
[1757326608294,39.54,212.91,212.82,13.59559401]
[1757326608491,48.68135328,212.91,212.86,9.14135328]
[1757326608694,9.80135328,212.9,212.83,0.7]
[1757326608901,0.66,212.9,212.85,9.14135328]
[1757326609099,39.54,212.89,212.85,9.14135328]
[1757326609305,39.54,212.89,212.85,9.17135328]
[1757326609819,39.54,212.89,212.86,9.14135328]
[1757326610307,9.14135328,212.87,212.85,0.03]
[1757326610607,0.06,212.95,212.86,0.7]
[1757326610804,9.14135328,212.93,212.88,9.14135328]
[1757326611006,9.14135328,212.9,212.85,0.03]
[1757326611206,48.68135328,212.89,212.85,0.03]
[1757326611392,0.66,212.88,212.85,0.03]
[1757326611600,9.80135328,212.88,212.85,0.03]
[1757326611900,14.4990561,212.87,212.85,0.03]
[1757326612294,13.8390561,212.87,212.85,0.03]
[1757326612611,9.80135328,212.9,212.85,0.03]
[1757326612913,9.14135328,212.87,212.85,0.03]
[1757326613290,9.14135328,212.88,212.85,0.03]
[1757326613503,9.80135328,212.86,212.85,0.03]
[1757326613707,14.49927679,212.86,212.85,0.03]
[1757326614098,26.24408558,212.86,212.82,0.03]
[1757326614406,9.14135328,212.83,212.82,0.03]
[1757326614826,9.80135328,212.83,212.82,0.03]
[1757326615804,0.66,212.86,212.82,0.03]
[1757326615986,48.68135328,212.85,212.82,0.03]